[Event "Romanian Team Blitz Women 2022"]
[Site "Sebes"]
[Date "2022.12.04"]
[Round "5.5"]
[White "Cosma, Elena-Luminita"]
[Black "Ionescu, Irina"]
[Result "1/2-1/2"]
[ECO "D26"]
[WhiteElo "2244"]
[BlackElo "2119"]
[Annotator "TA"]
[PlyCount "95"]
[EventDate "2022.12.04"]
[EventType "blitz"]
[EventCountry "ROU"]
[SourceTitle "playchess.com"]
[Source "ChessBase"]
[SourceQuality "1"]
[TimeControl "180+2"]

{[%evp 10,95,27,28,32,0,0,0,5,0,4,0,0,0,0,0,5,0,0,0,0,0,42,34,42,44,28,8,17,17,9,12,8,16,14,12,33,0,33,0,7,11,12,0,1,12,7,0,0,0,65,40,38,21,22,0,0,0,0,0,0,0,0,0,0,0,0,0,0,0,0,0,0,0,0,0,0,0,0,0,0,0,0,0,0,0,0,0]} 1. d4 {[%emt 0:00:01]} d5 {[%emt 0:00:03]} 2. c4 {[%emt 0:00:01]} dxc4 {[%emt 0:00:05]} 3. Nf3 {[%emt 0:00:01]} Nf6 {[%emt 0:00:00]} 4. e3 {[%emt 0:00:01]} e6 {[%emt 0:00:02]} 5. Bxc4 {[%emt 0:00:01]} a6 {[%emt 0:00:00]} 6. O-O {[%emt 0:00:02]} Nbd7 {[%emt 0:00:01] D26: Queen's Gambit Accepted: 4 e3 e6 5 Bxc5 c5 sidelines.} 7. a3 {[%emt 0:00:01]} b5 {[%emt 0:00:08] Inhibits b4.} 8. Be2 {[%emt 0:00:02]} c5 {[%emt 0:00:02] Prevents b4.} 9. dxc5 {[%emt 0:00:01]} Bxc5 {[%emt 0:00:03]} 10. b4 {[%emt 0:00:01]} Be7 {[%emt 0:00:05]} 11. Bb2 {[%emt 0:00:01]} O-O {[%emt 0:00:03]} 12. Nbd2 {[%emt 0:00:03]} Bb7 {[%emt 0:00:02]} 13. Nb3 {[%emt 0:00:01]} Rc8 {[%emt 0:00:07]} 14. Rc1 {[%emt 0:00:05]} Rxc1 {[%emt 0:00:18]} 15. Qxc1 {[%emt 0:00:01] [#]} Nb6 $146 {[%emt 0:00:08]} ({Predecessor:} 15... Qa8 16. Qa1 Rc8 17. Rc1 Bd5 18. Nbd2 h6 19. h3 Qb7 20. Bf1 Rc7 {½-½ (30) Deac,B (2707)-Nihal,S (2673) Mayrhofen 2022}) 16. Nc5 {[%emt 0:00:05]} Qa8 {[%emt 0:00:28]} 17. Nxb7 {[%emt 0:00:16]} Qxb7 {[%emt 0:00:01]} 18. Nd4 {[%emt 0:00:05]} Rc8 {[%emt 0:00:10]} 19. Qa1 {[%emt 0:00:01]} Nc4 {[%emt 0:00:03]} 20. Bf3 {[%emt 0:00:07]} Qd7 {[%emt 0:00:07]} 21. Rd1 {[%emt 0:00:10][%cal Od4c6]} Nxb2 {[%emt 0:00:12]} 22. Qxb2 {[%emt 0:00:02][%cal Od4f5]} Qc7 {[%emt 0:00:07]} (22... Bf8 $5) 23. h3 {[%emt 0:00:19]} h6 {[%emt 0:00:01]} 24. Nb3 {[%emt 0:00:19]} Qc3 {[%emt 0:00:04]} 25. Qb1 {[%emt 0:00:02] [#] aiming for Rc1.} Rc7 {[%emt 0:00:20]} 26. g3 {[%emt 0:00:50]} Qc2 {[%emt 0:00:10]} 27. Qxc2 {[%emt 0:00:05]} Rxc2 {[%emt 0:00:01]} 28. Bb7 {[%emt 0:00:11]} Rc3 {[%emt 0:00:05]} 29. Rb1 {[%emt 0:00:12]} Rc2 {[%emt 0:00:21]} ({Black should try} 29... Ne8 $11) 30. Nd4 {[%emt 0:00:04]} ({But not} 30. Bxa6 Ne4 $11) 30... Ra2 {[%emt 0:00:03]} 31. Bxa6 {[%emt 0:00:07]} Ne4 $1 {[%emt 0:00:02] The position is equal.} 32. Rf1 {[%emt 0:00:20]} Rxa3 {[%emt 0:00:04]} 33. Bxb5 {[%emt 0:00:06]} Bxb4 {[%emt 0:00:04]} 34. Nc2 {[%emt 0:00:03][%csl LRa3,LRb4] [#] Strongly threatening Bc6.} Rb3 {[%emt 0:00:14]} 35. Ba4 {[%emt 0:00:02]} Rb2 {[%emt 0:00:01]} 36. Nxb4 {[%emt 0:00:04]} Rxb4 $11 {[%emt 0:00:01][%mdl 4096] Endgame KRB-KRN} 37. Bc6 {[%emt 0:00:02]} Nf6 {[%emt 0:00:03]} 38. Rd1 {[%emt 0:00:01]} g6 {[%emt 0:00:02]} 39. h4 {[%emt 0:00:01]} Kg7 {[%emt 0:00:01]} 40. Kg2 {[%emt 0:00:00]} Rb2 {[%emt 0:00:03]} 41. Bf3 {[%emt 0:00:01] Against Ng4} g5 {[%emt 0:00:03]} 42. hxg5 {[%emt 0:00:02]} hxg5 {[%emt 0:00:02]} 43. g4 {[%emt 0:00:01]} Rb4 {[%emt 0:00:02]} 44. Kg3 {[%emt 0:00:02]} Ne4+ {[%emt 0:00:02]} 45. Bxe4 {[%emt 0:00:06]} Rxe4 {[%emt 0:00:02]} 46. Ra1 {[%emt 0:00:03]} Rb4 {[%emt 0:00:03]} 47. Ra5 {[%emt 0:00:03]} Kg6 {[%emt 0:00:04]} 48. Kf3 {[%emt 0:00:03] Weighted Error Value: White=0.06 (flawless) /Black=0.06 (flawless)} 1/2-1/2

[Event "Romanian Team Blitz Women 2022"]
[Site "Sebes"]
[Date "2022.12.04"]
[Round "5.6"]
[White "Schiopu, Andreea-Alexandra"]
[Black "Ciolacu, Alessia-Mihaela"]
[Result "0-1"]
[ECO "A48"]
[WhiteElo "1716"]
[BlackElo "2097"]
[Annotator "TA"]
[PlyCount "92"]
[EventDate "2022.12.04"]
[EventType "blitz"]
[EventCountry "ROU"]
[SourceTitle "playchess.com"]
[Source "ChessBase"]
[SourceQuality "1"]
[TimeControl "180+2"]

{[%evp 15,92,0,6,-12,-6,-44,-34,-35,-8,-12,-11,-56,-46,-85,-86,-86,-85,-87,-85,-83,-85,-170,-139,-139,-139,-184,-121,-121,-104,-130,-131,-138,-124,-127,75,75,173,95,158,0,251,243,214,203,246,245,581,0,0,-280,-296,-576,-549,-646,-530,-520,-403,-391,-384,-404,275,-146,29992,-1035,-1030,-1927,-1907,-1710,-1551,-5396,-1845,-29986,-29987,-29988,-29984,-29991,-29992,-29992,-29993]} 1. d4 {[%emt 0:00:02]} Nf6 {[%emt 0:00:01]} 2. Nf3 {[%emt 0:00:01]} b6 {[%emt 0:00:01]} 3. Bf4 {[%emt 0:00:01]} Bb7 {[%emt 0:00:02]} 4. e3 {[%emt 0:00:02]} g6 {[%emt 0:00:02]} 5. Be2 {[%emt 0:00:02]} Bg7 {[%emt 0:00:01]} 6. c3 {[%emt 0:00:02]} d6 {[%emt 0:00:03]} 7. Nbd2 {[%emt 0:00:01]} O-O {[%emt 0:00:03]} 8. O-O {[%emt 0:00:02]} c5 {[%emt 0:00:05]} 9. Rc1 {[%emt 0:00:19] A48: 1 d4 Nf6 2 Nf3 g6: Torre, London and Colle Systems.} Nh5 {[%emt 0:00:03] [#]} 10. Bg3 $146 {[%emt 0:00:03]} ({Predecessor:} 10. Bg5 h6 11. Bh4 g5 12. Bg3 Nd7 13. Ne1 Nxg3 14. hxg3 e5 15. dxe5 Nxe5 16. Nc4 Nxc4 17. Bxc4 {½-½ (54) Schwertel,J (2048)-Krueger,E (2229) Finsterbergen 2003}) 10... Nxg3 {[%emt 0:00:02]} 11. hxg3 {[%emt 0:00:01] Black is slightly better.} Nc6 {[%emt 0:00:05]} 12. d5 {[%emt 0:00:29]} Nb8 {[%emt 0:00:31]} 13. Nc4 {[%emt 0:00:21]} b5 {[%emt 0:00:05]} 14. Na3 {[%emt 0:00:02]} a6 {[%emt 0:00:02]} 15. Qd2 {[%emt 0:00:15]} Nd7 {[%emt 0:00:03]} 16. Rfd1 {[%emt 0:00:03]} Nf6 {[%emt 0:00:06]} 17. c4 {[%emt 0:00:06]} b4 $36 {[%emt 0:00:38][%mdl 2048] White is under strong pressure.} 18. Nc2 {[%emt 0:00:03]} (18. Nb1 $17) 18... Ne4 {[%emt 0:00:02]} 19. Qd3 {[%emt 0:00:10]} f5 {[%emt 0:00:02]} 20. Qb3 {[%emt 0:00:11]} Qd7 {[%emt 0:00:27]} (20... a5 $19 21. a4 e6) 21. Nd2 $17 {[%emt 0:00:12]} Nf6 {[%emt 0:00:14] Black has more active pieces.} 22. Ne1 {[%emt 0:00:07]} a5 {[%emt 0:00:01][%cal Ba6a5,Ba5a4][%mdl 32]} 23. Nd3 {[%emt 0:00:26]} a4 {[%emt 0:00:03]} 24. Qc2 {[%emt 0:00:01]} h6 $2 {[%emt 0:00:20]} (24... g5 $17 {White must now prevent ...a3.} 25. Bf3 a3) 25. Nf4 $16 {[%emt 0:00:03]} Kh7 {[%emt 0:00:09]} (25... Qe8 $16 {was worth a try.}) 26. Ne6 {[%emt 0:00:01]} ({White should play} 26. g4 $18) 26... Rfb8 {[%emt 0:00:03]} ({Better is} 26... Rg8) 27. Nf3 $2 {[%emt 0:00:35]} (27. g4 $16) 27... Bh8 $2 {[%emt 0:00:02][%mdl 8192]} (27... Bc8 $1 $11 {and Black is okay.}) 28. Nh4 {[%emt 0:00:03] Pair of Knights!} b3 {[%emt 0:00:19]} 29. axb3 {[%emt 0:00:03][%cal Oh4g6]} axb3 {[%emt 0:00:01]} 30. Qd3 {[%emt 0:00:05]} Ne4 $2 {[%emt 0:00:04]} (30... Nxd5 31. cxd5 Ba6) 31. f3 $2 {[%emt 0:00:05]} ({White must play} 31. g4 $18) 31... Nxg3 $11 {[%emt 0:00:03] Threatens to win with ...Bf6.} 32. Bf1 $2 {[%emt 0:00:03][%mdl 8192]} (32. Kf2 $11 Be5 33. Rh1) 32... Bf6 {[%emt 0:00:04]} 33. Kh2 $2 {[%emt 0:00:05]} (33. Nxg6 Kxg6 34. Kh2 Nxf1+ 35. Rxf1) 33... Bxh4 $19 {[%emt 0:00:02]} 34. e4 {[%emt 0:00:01]} fxe4 {[%emt 0:00:04]} 35. fxe4 {[%emt 0:00:01]} Nxf1+ {[%emt 0:00:03]} 36. Rxf1 {[%emt 0:00:01]} Bf6 {[%emt 0:00:01]} 37. Rf3 {[%emt 0:00:02]} Bc8 $4 {[%emt 0:00:01][%mdl 8192]} (37... Bxb2 38. Rc3 Qe8 39. Qd2 $11) (37... Qe8 $19 {and all is fine.} 38. Nc7 Qd7) 38. Qe3 $2 {[%emt 0:00:02] [#]} (38. Nf8+ $18 Kg7 39. Nxd7 Bxd7 40. Rcf1) 38... Qe8 $2 {[%emt 0:00:02][%mdl 8192] [#]} (38... Bxb2 $2 39. Qxh6+ $3 {[%mdl 512]} Kxh6 40. Rh3#) (38... Qxe6 $3 $17 {[%mdl 512]} 39. dxe6 Be5+ 40. Kh1 Bxe6) 39. Rh3 $4 {[%emt 0:00:01][%mdl 8192]} (39. Qxh6+ $1 {[%mdl 512]} Kg8 {[#]} 40. Rxf6 $1 {[%mdl 512]} Bxe6 41. Rxg6+ Qxg6 42. Qxg6+ Kh8 43. Kg3 Ra1 44. Rxa1 Bg8 45. Rh1+ Bh7 46. Rxh7#) 39... h5 {[%emt 0:00:03]} (39... Bxb2 $2 {gets mated.} 40. Qxh6+ Kg8 41. Qh7#) 40. Rg3 {[%emt 0:00:06]} Bxe6 {[%emt 0:00:01]} 41. dxe6 {[%emt 0:00:01]} Qg8 {[%emt 0:00:01]} 42. Qf3 {[%emt 0:00:03]} Qxe6 {[%emt 0:00:02]} 43. Rf1 {[%emt 0:00:00]} Rf8 {[%emt 0:00:01] Black mates.} 44. Qe3 {[%emt 0:00:01]} Bd4 {[%emt 0:00:05]} 45. Qd3 {[%emt 0:00:02]} Rxf1 46. Qxf1 {[%emt 0:00:01]} Be5 {[%emt 0:00:16] A wild game.   Weighted Error Value: White=1.33/Black=0.76} 0-1

[Event "Romanian Team Blitz Women 2022"]
[Site "Sebes"]
[Date "2022.12.04"]
[Round "6.1"]
[White "Ionica, Iulia-Ionela"]
[Black "Peptan, Corina-Isabela"]
[Result "1-0"]
[ECO "B47"]
[WhiteElo "2177"]
[BlackElo "2351"]
[Annotator "TA"]
[PlyCount "121"]
[EventDate "2022.12.04"]
[EventType "blitz"]
[EventCountry "ROU"]
[SourceTitle "playchess.com"]
[Source "ChessBase"]
[SourceQuality "1"]
[TimeControl "180+2"]

{[%evp 10,121,33,20,66,66,81,57,54,60,112,112,119,109,110,111,145,58,218,211,213,213,211,214,255,251,267,265,267,262,279,265,291,291,357,366,356,351,481,464,617,607,578,489,501,428,393,0,487,485,480,448,443,425,579,560,587,563,680,520,680,665,673,652,868,868,838,821,983,325,380,375,741,741,1070,1014,1868,1877,1777,1743,1598,1605,1458,1439,4133,2793,29976,29977,12447,8602,29987,29988,29988,29989,29989,29987,29989,29990,29990,29991,29991,29991,29992,29993,29993,29993,29994,29995,29995,29996,29996,29996,29999,1605]} 1. e4 {[%emt 0:00:03]} c5 {[%emt 0:00:01]} 2. Nf3 {[%emt 0:00:01]} e6 {[%emt 0:00:01]} 3. d4 {[%emt 0:00:01]} cxd4 {[%emt 0:00:02]} 4. Nxd4 {[%emt 0:00:01]} Nc6 {[%emt 0:00:00]} 5. Nc3 {[%emt 0:00:02]} Qc7 {[%emt 0:00:02]} 6. g3 {[%emt 0:00:02]} Nxd4 {[%emt 0:00:07] B47: Sicilian: Taimanov: 5 Nc3 Qc7 6 f4, 6 g3 and 6 Be2.} (6... a6 $11) 7. Qxd4 $14 {[%emt 0:00:02] Threatens to win with Nb5.} a6 {[%emt 0:00:00] Against Nb5} 8. Bf4 {[%emt 0:00:08] Inhibits b5. White is more active.} Qc5 {[%emt 0:00:44] [#] White is slightly better.} 9. Qd2 $146 {[%emt 0:00:03]} (9. Qxc5 {simplifies} Bxc5 10. Bg2 b5 11. e5) ({Predecessor:} 9. Qd3 b5 10. Bg2 Bb7 11. a3 d6 12. Rd1 Rd8 13. O-O Be7 14. Be3 Qc7 15. f4 {1-0 (71) Seretakis,N (2100)-Kiriakopoulos,A (1859) Achaia 2017}) 9... Be7 {[%emt 0:00:42]} (9... b5 $14) 10. Bg2 {[%emt 0:00:02]} d6 {[%emt 0:00:06] Prevents e5.} 11. O-O-O $36 {[%emt 0:00:32][%cal Rf4d6][%mdl 2048] White has strong initiative.} e5 {[%emt 0:00:02]} 12. Be3 {[%emt 0:00:02]} Qc4 {[%emt 0:00:14]} 13. Qd5 {[%emt 0:01:05]} (13. Nd5 $16 {Strongly threatening Nb6.} Be6 14. b3) 13... Qxd5 {[%emt 0:00:18]} (13... Qc7 $14) 14. Nxd5 $18 {[%emt 0:00:01]} Bd8 {[%emt 0:00:50] Against Nc7+} 15. Nb6 {[%emt 0:00:32]} Bxb6 {[%emt 0:00:02]} 16. Bxb6 {[%emt 0:00:01]} Nf6 {[%emt 0:00:15]} 17. Rxd6 {[%emt 0:00:04] [#] And now Rd8+ would win.} O-O {[%emt 0:00:01]} 18. Rhd1 {[%emt 0:00:07]} Be6 {[%emt 0:00:01]} 19. b3 {[%emt 0:00:04]} Rac8 {[%emt 0:00:01]} 20. Kb2 {[%emt 0:00:02]} h6 {[%emt 0:00:04]} 21. f4 {[%emt 0:00:05]} exf4 {[%emt 0:00:07]} 22. gxf4 {[%emt 0:00:01] Hoping for f5.} Bg4 {[%emt 0:00:01] Prevents f5.} 23. R1d2 {[%emt 0:00:03]} Rfe8 {[%emt 0:00:04]} 24. e5 {[%emt 0:00:01]} Nh7 {[%emt 0:00:00][%cal Bf6h7,Bh7f8,Bf8e6,Be6g5,Bg5f3][%mdl 32]} 25. Bxb7 {[%emt 0:00:02] This pair of bishops is nice.} Rb8 {[%emt 0:00:01]} 26. Be4 {[%emt 0:00:04]} Nf8 {[%emt 0:00:03]} 27. Bc7 {[%emt 0:00:13]} Rbc8 {[%emt 0:00:01]} 28. Bb6 {[%emt 0:00:04]} Rb8 $1 {[%emt 0:00:01] Inhibits Bb7.} 29. a4 {[%emt 0:00:05]} Ne6 {[%emt 0:00:02]} 30. f5 {[%emt 0:00:03]} Ng5 {[%emt 0:00:00]} 31. Bc6 {[%emt 0:00:06]} Bxf5 {[%emt 0:00:04]} 32. Bxe8 Rxe8 33. Rd8 {[%emt 0:00:05]} Rxd8 {[%emt 0:00:02]} 34. Rxd8+ {[%emt 0:00:01][%mdl 4096] Endgame KRB-KBN} Kh7 {[%emt 0:00:01]} 35. c4 {[%emt 0:00:02][%cal Bc2c4,Bc4c5][%mdl 32]} Nf3 {[%emt 0:00:01]} 36. c5 {[%emt 0:00:01]} Nxe5 {[%emt 0:00:01]} 37. Rd5 {[%emt 0:00:04]} f6 {[%emt 0:00:01]} 38. c6 {[%emt 0:00:02]} Be4 {[%emt 0:00:01]} 39. Rd6 $2 {[%emt 0:00:06]} (39. c7 {[%cal Od5e5] Black must now prevent Rxe5!} Bf5 40. Bd4) 39... Bxc6 {[%emt 0:00:01]} 40. Bd4 {[%emt 0:00:04] [#] aiming for Bxe5.} Bb7 $2 {[%emt 0:00:03]} (40... Bxa4 41. Bxe5 Be8) 41. Bxe5 {[%emt 0:00:02]} fxe5 {[%emt 0:00:01] KR-KB} 42. Kc3 {[%emt 0:00:01]} Kg8 {[%emt 0:00:02]} 43. Rb6 {[%emt 0:00:03]} Bg2 {[%emt 0:00:03]} 44. Rxa6 {[%emt 0:00:01]} Kf7 {[%emt 0:00:01]} 45. Rd6 {[%emt 0:00:02]} Ke7 {[%emt 0:00:01]} 46. Rd2 {[%emt 0:00:02]} Bb7 {[%emt 0:00:02]} 47. b4 {[%emt 0:00:02] b5 is the strong threat.} Ke6 {[%emt 0:00:01]} 48. b5 {[%emt 0:00:01]} e4 {[%emt 0:00:01]} 49. a5 {[%emt 0:00:01] White threatens a6 and mate.} Ke5 {[%emt 0:00:01]} 50. a6 {[%emt 0:00:01] White mates.} Bc8 {[%emt 0:00:01]} 51. a7 {[%emt 0:00:03]} Bb7 {[%emt 0:00:00]} 52. Rd8 {[%emt 0:00:03]} Kf4 {[%emt 0:00:03]} 53. a8=Q {[%emt 0:00:02]} Bxa8 {[%emt 0:00:00]} 54. Rxa8 {[%emt 0:00:02] KR-K3P} e3 {[%emt 0:00:01]} 55. Kd3 {[%emt 0:00:02]} g5 {[%emt 0:00:01]} 56. b6 {[%emt 0:00:01]} Kf3 {[%emt 0:00:01]} 57. Re8 {[%emt 0:00:01]} g4 {[%emt 0:00:02]} 58. b7 {[%emt 0:00:03]} h5 {[%emt 0:00:03]} 59. b8=Q {[%emt 0:00:02][%csl Gh2][%cal Rb8g3]} h4 {[%emt 0:00:01]} 60. Qe5 {[%emt 0:00:03]} h3 {[%emt 0:00:02]} 61. Qxe3+ {[%emt 0:00:01] Weighted Error Value: White=0.34/Black=0.67} (61. Qg3# $142) 1-0

[Event "Romanian Team Blitz Women 2022"]
[Site "Sebes"]
[Date "2022.12.04"]
[Round "6.2"]
[White "Ionescu, Irina"]
[Black "Visanescu, Daria-Ioana"]
[Result "1-0"]
[ECO "B40"]
[WhiteElo "2119"]
[BlackElo "2117"]
[Annotator "TA"]
[PlyCount "92"]
[EventDate "2022.12.04"]
[EventType "blitz"]
[EventCountry "ROU"]
[SourceTitle "playchess.com"]
[Source "ChessBase"]
[SourceQuality "1"]
[TimeControl "180+2"]

{[%evp 9,92,20,23,-8,-12,-10,-10,-6,5,5,8,-1,2,0,22,0,16,18,8,0,0,0,43,23,66,69,79,82,76,64,156,163,147,152,154,148,150,141,168,150,145,142,156,142,162,169,197,185,344,250,252,258,1391,1388,1322,1316,1249,1257,1116,1081,1293,918,1095,913,1116,1105,1162,1145,1406,1277,1313,1231,1202,1193,1855,1813,29982,29983,29990,2412,2114,1931,1902,1793,1136]} 1. e4 {[%emt 0:00:02]} c5 {[%emt 0:00:01]} 2. Nf3 {[%emt 0:00:03]} e6 {[%emt 0:00:02]} 3. b3 {[%emt 0:00:07]} Nc6 {[%emt 0:00:02]} 4. Bb2 {[%emt 0:00:00]} d5 {[%emt 0:00:02]} 5. exd5 {[%emt 0:00:08]} exd5 {[%emt 0:00:03]} 6. Be2 {[%emt 0:00:12] B40: Sicilian: 2...e6, Unusual lines.} Nf6 {[%emt 0:00:04]} 7. O-O {[%emt 0:00:02]} Be7 {[%emt 0:00:03]} 8. d4 {[%emt 0:00:01] The position is equal.} cxd4 {[%emt 0:00:25]} 9. Nxd4 {[%emt 0:00:03]} O-O {[%emt 0:00:03]} 10. Nd2 {[%emt 0:00:21] [#]} Qb6 $146 {[%emt 0:00:11]} ({Predecessor:} 10... Bd6 11. N2f3 Ne4 12. Nxc6 bxc6 13. Qd4 Nf6 14. Rfe1 Bf5 15. Qd1 Ne4 16. Bf1 Bg4 {0-1 (66) Muniz Guevara,A (2001)-Hernandez Sosa,O (2096) Camajuani 2018}) 11. N2f3 {[%emt 0:00:03]} Bd7 {[%emt 0:00:15]} 12. a3 {[%emt 0:00:02]} Rfd8 {[%emt 0:00:07]} 13. Bd3 {[%emt 0:00:11]} Bg4 {[%emt 0:00:09]} 14. Nf5 {[%emt 0:00:06]} Bxf5 {[%emt 0:00:15]} 15. Bxf5 {[%emt 0:00:02]} d4 {[%emt 0:00:17]} 16. Re1 {[%emt 0:00:07]} a5 {[%emt 0:00:27]} 17. Bd3 {[%emt 0:00:03]} Bc5 {[%emt 0:00:17] Black is on the road to losing.} 18. Bc4 {[%emt 0:00:18]} Re8 {[%emt 0:00:12]} 19. Qd2 {[%emt 0:00:13]} (19. Qd3 {seems wilder.} h6 20. Qg6 Qc7 21. Qf5) 19... Ne4 {[%emt 0:00:21] [#]} (19... Qc7 $14) 20. Bxf7+ $1 $16 {[%emt 0:00:21][%mdl 512]} Kxf7 {[%emt 0:00:05] [#]} 21. Rxe4 {[%emt 0:00:01][%mdl 576] Remove Defender, Decoy} Rxe4 {[%emt 0:00:10]} 22. Ng5+ {[%emt 0:00:01]} Kg8 {[%emt 0:00:02]} 23. Nxe4 {[%emt 0:00:01]} Rf8 {[%emt 0:00:05]} 24. Nxc5 {[%emt 0:00:18]} Qxc5 {[%emt 0:00:01]} 25. Re1 {[%emt 0:00:01]} b5 {[%emt 0:00:07]} 26. Qd3 {[%emt 0:00:15]} Rd8 {[%emt 0:00:03]} 27. h4 {[%emt 0:00:05]} b4 {[%emt 0:00:04]} 28. a4 {[%emt 0:00:02]} Ne5 $2 {[%emt 0:00:01]} (28... Qd5 29. Qb5 Kf7) 29. Qe4 {[%emt 0:00:16]} Nc6 {[%emt 0:00:02]} 30. Qe6+ {[%emt 0:00:02]} Kh8 $2 {[%emt 0:00:03] [#]} (30... Kf8 31. Re4 Qd6 32. Qf5+ Kg8) 31. Qe8+ $3 $18 {[%emt 0:00:08][%mdl 512]} Qf8 {[%emt 0:00:01]} 32. Qxc6 {[%emt 0:00:03]} Rc8 {[%emt 0:00:01]} 33. Qe4 {[%emt 0:00:05]} Rd8 {[%emt 0:00:02]} 34. Bxd4 {[%emt 0:00:02]} h6 {[%emt 0:00:02]} 35. Be3 {[%emt 0:00:06]} Re8 {[%emt 0:00:01]} 36. Qd4 {[%emt 0:00:03]} Rd8 {[%emt 0:00:08]} 37. Qe5 {[%emt 0:00:04]} Re8 {[%emt 0:00:00]} 38. Qxa5 {[%emt 0:00:01]} Rc8 {[%emt 0:00:00]} 39. Re2 {[%emt 0:00:07]} Rd8 {[%emt 0:00:00]} 40. Qc7 {[%emt 0:00:06]} Rd1+ {[%emt 0:00:02]} 41. Kh2 {[%emt 0:00:00]} Rd8 {[%emt 0:00:03]} 42. Bc5 {[%emt 0:00:03]} Qg8 {[%emt 0:00:03]} 43. Re7 {[%emt 0:00:05]} Qd5 {[%emt 0:00:02]} 44. Qe5 {[%emt 0:00:02]} (44. Rxg7 $142 Qe4 45. Rh7+ Qxh7 46. Qxd8+ Qg8 47. Bd4+ Kh7 48. Qe7+ Kg6 49. Qf6+ Kh7 50. h5 Qb8+ 51. g3 Qxg3+ 52. Kxg3 Kg8 53. Qg7#) 44... Qxe5+ {[%emt 0:00:02] White is clearly winning.} 45. Rxe5 {[%emt 0:00:01]} Rb8 {[%emt 0:00:01]} 46. Re4 {[%emt 0:00:01]} Kg8 {Weighted Error Value: White=0.11 (very precise) /Black=0.26 (precise)} 1-0